[Event "71st RUS-ch Higher League 2018"]
[Site "Yaroslavl"]
[Date "2018.06.29"]
[Round "4"]
[White "Esipenko, Andrey"]
[Black "Sviridov, Valery"]
[Result "1/2-1/2"]
[ECO "A49"]
[WhiteElo "2599"]
[BlackElo "2513"]
[Annotator "ChessBase"]
[PlyCount "121"]
[EventDate "2018.06.26"]
[EventType "swiss"]
[EventCountry "RUS"]
[SourceTitle "playchess.com"]
[Source "ChessBase"]
[SourceQuality "1"]
[TimeControl "40/5400+30:1800+30"]

1. d4 {[%emt 0:00:00]} Nf6 {[%emt 0:00:19]} 2. Nf3 {[%emt 0:00:00]} g6 {[%emt 0:00:40]} 3. g3 {[%emt 0:00:00]} Bg7 {[%emt 0:00:10]} 4. Bg2 {[%emt 0:00:00]} O-O {[%emt 0:00:09]} 5. O-O {[%emt 0:00:01]} d6 {[%emt 0:01:40]} 6. b3 {[%emt 0:00:10]} c5 {[%emt 0:12:48]} 7. c4 {[%emt 0:00:08]} Nc6 {[%emt 0:00:34]} 8. Bb2 {[%emt 0:00:09]} Ne4 {[%emt 0:02:40]} 9. e3 {[%emt 0:00:26]} Qa5 {[%emt 0:13:45]} 10. Ne1 {[%emt 0:19:13]} f5 {[%emt 0:03:13]} 11. f3 {[%emt 0:10:27]} Nf6 {[%emt 0:01:03]} 12. d5 {[%emt 0:05:42]} Ne5 {[%emt 0:00:58]} 13. Nc3 {[%emt 0:01:21]} Bd7 {[%emt 0:01:17]} 14. a4 {[%emt 0:06:18]} a6 {[%emt 0:01:26]} 15. Nd3 {[%emt 0:03:56]} Nxd3 {[%emt 0:02:46]} 16. Qxd3 {[%emt 0:00:06]} Nh5 {[%emt 0:01:19]} 17. Qc2 {[%emt 0:02:35]} Rab8 {[%emt 0:02:08]} 18. Ne2 {[%emt 0:02:34]} Bxb2 {[%emt 0:01:00]} 19. Qxb2 {[%emt 0:00:04]} Qc7 {[%emt 0:00:43]} 20. a5 {[%emt 0:01:08]} b5 {[%emt 0:04:41]} 21. axb6 {[%emt 0:00:10]} Qxb6 {[%emt 0:01:49]} 22. Rfb1 {[%emt 0:02:58]} a5 {[%emt 0:03:41]} 23. Qc1 {[%emt 0:00:57]} Rb7 {[%emt 0:02:32]} 24. Nc3 {[%emt 0:01:18]} Rfb8 {[%emt 0:00:55]} 25. Bf1 {[%emt 0:05:22]} Nf6 {[%emt 0:03:04]} 26. Bd3 {[%emt 0:01:07]} Qd8 {[%emt 0:01:45]} 27. Bc2 {[%emt 0:00:09]} Rb4 {[%emt 0:00:50]} 28. Na2 {[%emt 0:02:49]} R4b7 {[%emt 0:00:22]} 29. Nc3 {[%emt 0:00:14]} Rb4 {[%emt 0:00:13]} 30. Qd2 {[%emt 0:00:17]} Kg7 {[%emt 0:05:24]} 31. Kg2 {[%emt 0:00:29]} Qc7 {[%emt 0:00:57]} 32. h3 {[%emt 0:01:11]} Ra8 {[%emt 0:06:30]} 33. Qe2 {[%emt 0:02:43]} e6 {[%emt 0:01:58]} 34. dxe6 {[%emt 0:01:51]} Bxe6 {[%emt 0:00:07]} 35. Rd1 {[%emt 0:00:25]} Qe7 {[%emt 0:04:31]} 36. Qf2 {[%emt 0:02:22]} Bf7 {[%emt 0:02:12]} 37. Qd2 {[%emt 0:08:44]} Ra6 {[%emt 0:02:12]} 38. Re1 {[%emt 0:02:24]} Qe5 {[%emt 0:02:50]} 39. Rad1 {[%emt 0:02:58]} Rb8 {[%emt 0:03:08]} 40. e4 {[%emt 0:00:00]} fxe4 {[%emt 0:00:33]} 41. Nxe4 {[%emt 0:04:31]} Nxe4 {[%emt 0:04:02]} 42. Rxe4 {[%emt 0:01:10]} Qb2 {[%emt 0:02:02]} 43. Rb1 {[%emt 0:00:50]} Qf6 {[%emt 0:00:10]} 44. Rf4 {[%emt 0:00:10]} Qd8 {[%emt 0:01:05]} 45. Qc3+ {[%emt 0:07:42]} Kg8 {[%emt 0:00:08]} 46. Be4 {[%emt 0:01:27]} Ra7 {[%emt 0:01:18]} 47. h4 {[%emt 0:08:27]} Qe8 {[%emt 0:09:40]} 48. Qd3 {[%emt 0:15:59]} Qe5 {[%emt 0:03:47]} 49. h5 {[%emt 0:01:01]} Qxh5 {[%emt 0:03:51]} 50. Qxd6 {[%emt 0:00:23]} Re8 {[%emt 0:00:13]} 51. Rd1 {[%emt 0:02:33]} Qe5 {[%emt 0:00:55]} 52. Qxe5 {[%emt 0:04:55]} Rxe5 {[%emt 0:00:11]} 53. Rf6 {[%emt 0:01:51]} Re6 {[%emt 0:04:27]} 54. Rd8+ {[%emt 0:01:35]} Kg7 {[%emt 0:00:08]} 55. Rxe6 {[%emt 0:00:07]} Bxe6 {[%emt 0:00:04]} 56. Bd5 {[%emt 0:01:04]} Rd7 {[%emt 0:00:22]} 57. Ra8 {[%emt 0:00:19]} Bxd5 {[%emt 0:00:11]} 58. cxd5 {[%emt 0:00:07]} Rxd5 {[%emt 0:00:04]} 59. Rxa5 {[%emt 0:00:06]} Rd2+ {[%emt 0:00:13]} 60. Kh3 {[%emt 0:00:06]} Rd3 {[%emt 0:00:03]} 61. f4 {[%emt 0:00:12]} 1/2-1/2

[Event "71st RUS-ch Higher League 2018"]
[Site "Yaroslavl"]
[Date "2018.06.29"]
[Round "4"]
[White "Pridorozhni, Aleksei"]
[Black "Bykov, Egor"]
[Result "1-0"]
[ECO "C45"]
[WhiteElo "2589"]
[BlackElo "2373"]
[Annotator "ChessBase"]
[PlyCount "77"]
[EventDate "2018.06.26"]
[EventType "swiss"]
[EventCountry "RUS"]
[SourceTitle "playchess.com"]
[Source "ChessBase"]
[SourceQuality "1"]
[TimeControl "40/5400+30:1800+30"]

1. e4 {[%emt 0:00:00]} e5 {[%emt 0:00:06]} 2. Nf3 {[%emt 0:00:00]} Nc6 {[%emt 0:00:06]} 3. d4 {[%emt 0:00:00]} exd4 {[%emt 0:00:06]} 4. Nxd4 {[%emt 0:00:00]} Nf6 {[%emt 0:00:05]} 5. Nxc6 {[%emt 0:00:02]} bxc6 {[%emt 0:00:06]} 6. e5 {[%emt 0:00:08]} Qe7 {[%emt 0:00:05]} 7. Qe2 {[%emt 0:00:07]} Nd5 {[%emt 0:00:05]} 8. h4 {[%emt 0:00:11]} g6 {[%emt 0:10:44]} 9. c4 {[%emt 0:03:45]} Nb6 {[%emt 0:05:22]} 10. Bg5 {[%emt 0:06:35]} Qe6 {[%emt 0:04:30]} 11. Bf6 {[%emt 0:05:33]} Bb4+ {[%emt 0:01:25]} 12. Nd2 {[%emt 0:00:34]} O-O {[%emt 0:15:51]} 13. O-O-O {[%emt 0:13:30]} d6 {[%emt 0:16:22]} 14. Ne4 {[%emt 0:03:16]} dxe5 {[%emt 0:05:20]} 15. h5 {[%emt 0:03:33]} Be7 {[%emt 0:12:48]} 16. Qf3 {[%emt 0:01:06]} Nd7 {[%emt 0:06:00]} 17. Bxe7 {[%emt 0:02:18]} Qxe7 {[%emt 0:00:06]} 18. Rxd7 {[%emt 0:00:07]} Bxd7 {[%emt 0:00:03]} 19. Nf6+ {[%emt 0:00:05]} Kh8 {[%emt 0:03:18]} 20. Nxd7 {[%emt 0:00:30]} Rfd8 {[%emt 0:04:23]} 21. Qf6+ {[%emt 0:06:58]} Qxf6 {[%emt 0:00:06]} 22. Nxf6 {[%emt 0:00:03]} Kg7 {[%emt 0:01:20]} 23. Ne4 {[%emt 0:01:07]} Rd4 {[%emt 0:00:40]} 24. f3 {[%emt 0:01:16]} Rad8 {[%emt 0:03:05]} 25. Be2 {[%emt 0:00:47]} f5 {[%emt 0:02:12]} 26. h6+ {[%emt 0:03:18]} Kg8 {[%emt 0:01:50]} 27. Ng5 {[%emt 0:00:14]} R8d6 {[%emt 0:02:19]} 28. c5 {[%emt 0:01:26]} R6d5 {[%emt 0:00:14]} 29. b3 {[%emt 0:00:12]} Rd2 {[%emt 0:01:11]} 30. Bc4 {[%emt 0:02:06]} Rxg2 {[%emt 0:00:13]} 31. Bxd5+ {[%emt 0:00:32]} cxd5 {[%emt 0:00:05]} 32. Ne6 {[%emt 0:00:04]} c6 {[%emt 0:03:53]} 33. Nd8 {[%emt 0:00:46]} Rxa2 {[%emt 0:01:14]} 34. Re1 {[%emt 0:00:13]} e4 {[%emt 0:01:00]} 35. fxe4 {[%emt 0:00:56]} dxe4 {[%emt 0:00:18]} 36. Nxc6 {[%emt 0:00:05]} Kf7 {[%emt 0:00:20]} 37. Kb1 {[%emt 0:00:34]} Ra6 {[%emt 0:00:36]} 38. Ne5+ {[%emt 0:01:47]} Ke6 {[%emt 0:00:42]} 39. c6 {[%emt 0:00:54]} 1-0

[Event "71st RUS-ch Higher League 2018"]
[Site "Yaroslavl"]
[Date "2018.06.29"]
[Round "4"]
[White "Volkov, Sergey"]
[Black "Rakhmanov, Aleksandr"]
[Result "0-1"]
[ECO "A50"]
[WhiteElo "2580"]
[BlackElo "2627"]
[Annotator "ChessBase"]
[PlyCount "92"]
[EventDate "2018.06.26"]
[EventType "swiss"]
[EventCountry "RUS"]
[SourceTitle "playchess.com"]
[Source "ChessBase"]
[SourceQuality "1"]
[TimeControl "40/5400+30:1800+30"]

1. d4 {[%emt 0:00:00]} Nf6 {[%emt 0:00:47]} 2. c4 {[%emt 0:00:00]} b6 {[%emt 0:01:15]} 3. f3 {[%emt 0:04:17]} Nc6 {[%emt 0:00:32]} 4. Nc3 {[%emt 0:03:18]} e5 {[%emt 0:00:24]} 5. d5 {[%emt 0:00:12]} Ne7 {[%emt 0:01:16]} 6. e4 {[%emt 0:00:41]} Ng6 {[%emt 0:00:25]} 7. Nge2 {[%emt 0:01:33]} Bc5 {[%emt 0:08:37]} 8. a3 {[%emt 0:01:00]} a5 {[%emt 0:00:34]} 9. Rb1 {[%emt 0:04:34]} O-O {[%emt 0:07:57]} 10. b4 {[%emt 0:01:10]} Be7 {[%emt 0:01:04]} 11. Be3 {[%emt 0:10:38]} Ne8 {[%emt 0:16:13]} 12. c5 {[%emt 0:07:46]} axb4 {[%emt 0:07:38]} 13. axb4 {[%emt 0:00:16]} bxc5 {[%emt 0:00:23]} 14. bxc5 {[%emt 0:00:07]} Bg5 {[%emt 0:12:00]} 15. Bf2 {[%emt 0:02:50]} d6 {[%emt 0:08:09]} 16. c6 {[%emt 0:03:23]} Nh4 {[%emt 0:08:59]} 17. Ng1 {[%emt 0:05:03]} f5 {[%emt 0:01:06]} 18. g3 {[%emt 0:00:13]} Ng6 {[%emt 0:02:28]} 19. Bd3 {[%emt 0:11:44]} fxe4 {[%emt 0:00:37]} 20. Nxe4 {[%emt 0:00:53]} Bh6 {[%emt 0:00:19]} 21. Kf1 {[%emt 0:07:39]} Qe7 {[%emt 0:02:21]} 22. Kg2 {[%emt 0:01:10]} Qf7 {[%emt 0:00:34]} 23. Qe2 {[%emt 0:07:27]} Kh8 {[%emt 0:02:33]} 24. Bc4 {[%emt 0:04:06]} Nf6 {[%emt 0:03:04]} 25. Nxf6 {[%emt 0:01:27]} Qxf6 {[%emt 0:05:09]} 26. Bd3 {[%emt 0:02:00]} Ne7 {[%emt 0:05:17]} 27. Be4 {[%emt 0:01:38]} Qf7 {[%emt 0:01:42]} 28. Rd1 {[%emt 0:02:35]} Ra5 {[%emt 0:01:12]} 29. Qc4 {[%emt 0:03:14]} Bf5 {[%emt 0:00:26]} 30. Qc2 {[%emt 0:07:48]} Nxd5 {[%emt 0:01:19]} 31. Bxf5 {[%emt 0:00:12]} Qxf5 {[%emt 0:00:38]} 32. Qxf5 {[%emt 0:00:03]} Rxf5 {[%emt 0:00:04]} 33. Ne2 {[%emt 0:00:46]} Rf8 {[%emt 0:00:40]} 34. Ra1 {[%emt 0:00:26]} Rfa8 {[%emt 0:00:09]} 35. Rxa5 {[%emt 0:00:03]} Rxa5 {[%emt 0:00:02]} 36. Rb1 {[%emt 0:00:23]} Kg8 {[%emt 0:00:05]} 37. f4 {[%emt 0:01:12]} Kf7 {[%emt 0:00:26]} 38. f5 {[%emt 0:02:19]} Ra6 {[%emt 0:00:45]} 39. Rb5 {[%emt 0:00:41]} Ne7 {[%emt 0:00:24]} 40. g4 {[%emt 0:00:00]} g6 {[%emt 0:00:58]} 41. Bh4 {[%emt 0:02:00]} Rxc6 {[%emt 0:06:20]} 42. Bxe7 {[%emt 0:00:45]} Kxe7 {[%emt 0:00:09]} 43. Rb8 {[%emt 0:00:03]} Rc2 {[%emt 0:03:30]} 44. Kf1 {[%emt 0:00:21]} Bg7 {[%emt 0:01:59]} 45. Rg8 {[%emt 0:00:54]} Kf7 {[%emt 0:00:22]} 46. Rd8 {[%emt 0:00:15]} Bf6 {[%emt 0:00:19]} 0-1

[Event "71st RUS-ch Higher League 2018"]
[Site "Yaroslavl"]
[Date "2018.06.29"]
[Round "4"]
[White "Sarana, Alexey"]
[Black "Khismatullin, Denis"]
[Result "1-0"]
[ECO "C67"]
[WhiteElo "2573"]
[BlackElo "2627"]
[Annotator "ChessBase"]
[PlyCount "81"]
[EventDate "2018.06.26"]
[EventType "swiss"]
[EventCountry "RUS"]
[SourceTitle "playchess.com"]
[Source "ChessBase"]
[SourceQuality "1"]
[TimeControl "40/5400+30:1800+30"]

1. e4 {[%emt 0:00:00]} e5 {[%emt 0:01:18]} 2. Nf3 {[%emt 0:00:00]} Nc6 {[%emt 0:00:05]} 3. Bb5 {[%emt 0:01:15]} Nf6 {[%emt 0:02:32]} 4. O-O {[%emt 0:06:02]} Nxe4 {[%emt 0:00:20]} 5. d4 {[%emt 0:04:09]} Nd6 {[%emt 0:00:33]} 6. dxe5 {[%emt 0:00:08]} Nxb5 {[%emt 0:00:05]} 7. a4 {[%emt 0:00:05]} d6 {[%emt 0:09:56]} 8. e6 {[%emt 0:00:20]} fxe6 {[%emt 0:00:31]} 9. axb5 {[%emt 0:00:02]} Ne7 {[%emt 0:00:06]} 10. Nc3 {[%emt 0:10:42]} Nf5 {[%emt 0:22:52]} 11. Nd4 {[%emt 0:29:16]} Qf6 {[%emt 0:08:29]} 12. b6 {[%emt 0:04:57]} cxb6 {[%emt 0:07:04]} 13. Ndb5 {[%emt 0:10:41]} Qd8 {[%emt 0:04:56]} 14. g4 {[%emt 0:01:34]} Nh4 {[%emt 0:16:30]} 15. Ne4 {[%emt 0:04:27]} d5 {[%emt 0:00:48]} 16. Bf4 {[%emt 0:01:28]} e5 {[%emt 0:05:55]} 17. Bg5 {[%emt 0:04:37]} Qd7 {[%emt 0:01:06]} 18. Bxh4 {[%emt 0:00:18]} dxe4 {[%emt 0:07:16]} 19. Qxd7+ {[%emt 0:00:50]} Kxd7 {[%emt 0:00:07]} 20. Rfd1+ {[%emt 0:02:08]} Kc6 {[%emt 0:00:06]} 21. Nxa7+ {[%emt 0:00:28]} Rxa7 {[%emt 0:00:48]} 22. Rxa7 {[%emt 0:00:02]} Bc5 {[%emt 0:00:36]} 23. Ra8 {[%emt 0:03:17]} Bxg4 {[%emt 0:03:09]} 24. Rxh8 {[%emt 0:00:19]} Bxd1 {[%emt 0:00:04]} 25. Bg3 {[%emt 0:07:14]} e3 {[%emt 0:01:52]} 26. fxe3 {[%emt 0:00:07]} Bxc2 {[%emt 0:02:34]} 27. Kf2 {[%emt 0:02:39]} Kd5 {[%emt 0:00:10]} 28. Re8 {[%emt 0:00:17]} Bd6 {[%emt 0:00:19]} 29. Rg8 {[%emt 0:00:25]} g6 {[%emt 0:01:17]} 30. Rg7 {[%emt 0:00:10]} Bc5 {[%emt 0:03:10]} 31. Bh4 {[%emt 0:01:10]} Kc4 {[%emt 0:00:49]} 32. Rxb7 {[%emt 0:02:22]} Kd3 {[%emt 0:00:23]} 33. Bg5 {[%emt 0:00:15]} Kc4 {[%emt 0:00:40]} 34. Rxh7 {[%emt 0:00:40]} Bf5 {[%emt 0:00:31]} 35. Be7 {[%emt 0:00:41]} Be4 {[%emt 0:00:31]} 36. Bxc5 {[%emt 0:00:55]} bxc5 {[%emt 0:00:20]} 37. Ke2 {[%emt 0:00:17]} Bf5 {[%emt 0:00:39]} 38. Rf7 {[%emt 0:00:40]} Be4 {[%emt 0:00:15]} 39. Rd7 {[%emt 0:00:21]} Bf5 {[%emt 0:00:09]} 40. Rd6 {[%emt 0:00:00]} Be4 {[%emt 0:00:09]} 41. h4 {[%emt 0:01:18]} 1-0

[Event "71st RUS-ch Higher League 2018"]
[Site "Yaroslavl"]
[Date "2018.06.29"]
[Round "4"]
[White "Moskalenko, Alexander"]
[Black "Girya, Olga"]
[Result "1/2-1/2"]
[ECO "A11"]
[WhiteElo "2558"]
[BlackElo "2457"]
[Annotator "ChessBase"]
[PlyCount "45"]
[EventDate "2018.06.26"]
[EventType "swiss"]
[EventCountry "RUS"]
[SourceTitle "playchess.com"]
[Source "ChessBase"]
[SourceQuality "1"]
[TimeControl "40/5400+30:1800+30"]

1. c4 {[%emt 0:05:54]} c6 {[%emt 0:00:06]} 2. Nf3 {[%emt 0:00:28]} d5 {[%emt 0:00:05]} 3. e3 {[%emt 0:00:03]} Nf6 {[%emt 0:00:05]} 4. Nc3 {[%emt 0:00:04]} e6 {[%emt 0:00:14]} 5. b3 {[%emt 0:00:16]} Bd6 {[%emt 0:00:18]} 6. Bb2 {[%emt 0:00:05]} O-O {[%emt 0:00:08]} 7. d4 {[%emt 0:01:21]} Nbd7 {[%emt 0:00:19]} 8. Bd3 {[%emt 0:00:13]} Re8 {[%emt 0:01:26]} 9. Qc2 {[%emt 0:10:09]} e5 {[%emt 0:00:52]} 10. cxd5 {[%emt 0:02:46]} cxd5 {[%emt 0:00:16]} 11. Nb5 {[%emt 0:39:36]} Bb4+ {[%emt 0:01:15]} 12. Nd2 {[%emt 0:00:08]} e4 {[%emt 0:02:16]} 13. Be2 {[%emt 0:01:45]} Re6 {[%emt 0:01:58]} 14. Qc7 {[%emt 0:00:40]} Qf8 {[%emt 0:04:52]} 15. Rc1 {[%emt 0:06:28]} a6 {[%emt 0:16:35]} 16. Na7 {[%emt 0:02:18]} Nb6 {[%emt 0:09:13]} 17. Nxc8 {[%emt 0:01:15]} Rxc8 {[%emt 0:00:05]} 18. Qxb7 {[%emt 0:02:53]} Rb8 {[%emt 0:04:36]} 19. Qc7 {[%emt 0:00:21]} Rc8 {[%emt 0:03:57]} 20. Qb7 {[%emt 0:01:02]} Rb8 {[%emt 0:01:19]} 21. Qc7 {[%emt 0:01:06]} Rc8 {[%emt 0:00:14]} 22. Qb7 {[%emt 0:00:08]} Rb8 {[%emt 0:00:04]} 23. Qc7 {[%emt 0:00:13]} 1/2-1/2

[Event "71st RUS-ch Higher League 2018"]
[Site "Yaroslavl"]
[Date "2018.06.29"]
[Round "4"]
[White "Lomasov, Semen"]
[Black "Lysyj, Igor"]
[Result "1-0"]
[ECO "C52"]
[WhiteElo "2549"]
[BlackElo "2630"]
[Annotator "ChessBase"]
[PlyCount "61"]
[EventDate "2018.06.26"]
[EventType "swiss"]
[EventCountry "RUS"]
[SourceTitle "playchess.com"]
[Source "ChessBase"]
[SourceQuality "1"]
[TimeControl "40/5400+30:1800+30"]

1. e4 {[%emt 0:00:00]} e5 {[%emt 0:00:05]} 2. Nf3 {[%emt 0:00:00]} Nc6 {[%emt 0:00:05]} 3. Bc4 {[%emt 0:00:00]} Bc5 {[%emt 0:00:05]} 4. b4 {[%emt 0:00:00]} Bxb4 {[%emt 0:00:07]} 5. c3 {[%emt 0:00:00]} Ba5 {[%emt 0:00:11]} 6. d4 {[%emt 0:00:10]} d6 {[%emt 0:00:10]} 7. Qb3 {[%emt 0:00:08]} Qd7 {[%emt 0:00:07]} 8. O-O {[%emt 0:00:23]} Bb6 {[%emt 0:00:43]} 9. Nbd2 {[%emt 0:00:15]} Na5 {[%emt 0:00:42]} 10. Qc2 {[%emt 0:01:11]} Nxc4 {[%emt 0:00:55]} 11. Nxc4 {[%emt 0:00:07]} Qc6 {[%emt 0:00:14]} 12. Nxb6 {[%emt 0:00:07]} axb6 {[%emt 0:00:06]} 13. dxe5 {[%emt 0:00:05]} dxe5 {[%emt 0:00:07]} 14. Nxe5 {[%emt 0:00:05]} Qa4 {[%emt 0:00:07]} 15. Qd3 {[%emt 0:00:21]} Nf6 {[%emt 0:00:42]} 16. Bg5 {[%emt 0:02:52]} Qxe4 {[%emt 0:00:25]} 17. Qb5+ {[%emt 0:00:21]} c6 {[%emt 0:00:10]} 18. Qxb6 {[%emt 0:00:05]} O-O {[%emt 0:00:09]} 19. Bxf6 {[%emt 0:02:11]} gxf6 {[%emt 0:00:20]} 20. Rae1 {[%emt 0:00:57]} Qd5 {[%emt 0:10:06]} 21. Nf3 {[%emt 0:00:26]} Rxa2 {[%emt 0:13:58]} 22. Re3 {[%emt 0:09:15]} Ra6 {[%emt 0:06:20]} 23. Qc7 {[%emt 0:04:46]} c5 {[%emt 0:01:01]} 24. Qg3+ {[%emt 0:01:22]} Kh8 {[%emt 0:00:07]} 25. Rfe1 {[%emt 0:00:10]} Re6 {[%emt 0:09:44]} 26. Qf4 {[%emt 0:13:48]} Qd6 {[%emt 0:06:58]} 27. Qh6 {[%emt 0:00:39]} Rxe3 {[%emt 0:00:38]} 28. fxe3 {[%emt 0:00:05]} Rg8 {[%emt 0:04:49]} 29. e4 {[%emt 0:01:24]} Bg4 {[%emt 0:11:30]} 30. e5 {[%emt 0:10:01]} Qa6 {[%emt 0:13:41]} 31. e6 {[%emt 0:01:32]} 1-0

[Event "71st RUS-ch Higher League 2018"]
[Site "Yaroslavl"]
[Date "2018.06.29"]
[Round "4"]
[White "Moiseenko, Vadim"]
[Black "Oganian, Miran"]
[Result "1-0"]
[ECO "A00"]
[WhiteElo "2517"]
[BlackElo "2432"]
[Annotator "ChessBase"]
[PlyCount "69"]
[EventDate "2018.06.26"]
[EventType "swiss"]
[EventCountry "RUS"]
[SourceTitle "playchess.com"]
[Source "ChessBase"]
[SourceQuality "1"]
[TimeControl "40/5400+30:1800+30"]

1. g3 {[%emt 0:00:00]} d5 {[%emt 0:01:04]} 2. Bg2 {[%emt 0:00:00]} Nc6 {[%emt 0:04:47]} 3. d4 {[%emt 0:00:44]} Bf5 {[%emt 0:01:34]} 4. Nf3 {[%emt 0:02:10]} Nb4 {[%emt 0:07:04]} 5. Na3 {[%emt 0:04:29]} e6 {[%emt 0:00:32]} 6. O-O {[%emt 0:00:52]} h6 {[%emt 0:04:40]} 7. Bf4 {[%emt 0:04:56]} Nf6 {[%emt 0:05:36]} 8. Nb5 {[%emt 0:04:15]} Bd6 {[%emt 0:03:24]} 9. Qd2 {[%emt 0:05:59]} Nc6 {[%emt 0:05:17]} 10. c4 {[%emt 0:00:39]} Ne4 {[%emt 0:06:56]} 11. Qe3 {[%emt 0:00:50]} O-O {[%emt 0:08:06]} 12. Rac1 {[%emt 0:02:39]} Qd7 {[%emt 0:09:30]} 13. Rfd1 {[%emt 0:07:37]} a6 {[%emt 0:02:12]} 14. Nc3 {[%emt 0:01:04]} Nxc3 {[%emt 0:01:38]} 15. Qxc3 {[%emt 0:01:44]} Bxf4 {[%emt 0:04:14]} 16. gxf4 {[%emt 0:00:06]} Be4 {[%emt 0:00:59]} 17. Nd2 {[%emt 0:04:08]} Bxg2 {[%emt 0:01:35]} 18. Kxg2 {[%emt 0:00:04]} Ne7 {[%emt 0:04:33]} 19. cxd5 {[%emt 0:03:59]} exd5 {[%emt 0:02:30]} 20. Qh3 {[%emt 0:06:14]} Qd6 {[%emt 0:07:18]} 21. e3 {[%emt 0:02:17]} Rac8 {[%emt 0:00:16]} 22. Kh1 {[%emt 0:01:17]} c5 {[%emt 0:01:42]} 23. Nf3 {[%emt 0:03:27]} cxd4 {[%emt 0:04:12]} 24. Nxd4 {[%emt 0:00:06]} Kh7 {[%emt 0:04:36]} 25. Rg1 {[%emt 0:01:03]} g6 {[%emt 0:03:10]} 26. Rcd1 {[%emt 0:00:32]} Qf6 {[%emt 0:02:09]} 27. Rg3 {[%emt 0:02:52]} Nc6 {[%emt 0:01:59]} 28. Nf3 {[%emt 0:01:39]} Rcd8 {[%emt 0:01:41]} 29. Rdg1 {[%emt 0:01:22]} d4 {[%emt 0:00:38]} 30. f5 {[%emt 0:02:06]} dxe3 {[%emt 0:00:37]} 31. Ng5+ {[%emt 0:00:56]} Kg7 {[%emt 0:00:48]} 32. Ne6+ {[%emt 0:00:05]} Kg8 {[%emt 0:00:40]} 33. Qxh6 {[%emt 0:00:22]} Ne7 {[%emt 0:00:31]} 34. Rh3 {[%emt 0:00:50]} Nxf5 {[%emt 0:00:31]} 35. Qh7# {[%emt 0:00:05]} 1-0